Cogmind - Beta 17.1 @@@ ROGUE MODE // 2026.08.28 @ 03:58:07 Player: Godsword Result: Destroyed by S-10 Pest with Light Assault Rifle Performance ------------- Evolutions (0) 0 Regions Visited (2) 400 Robots Destroyed (10) 50 Value Destroyed (204) 204 Prototype IDs (0) 0 Alien Tech Used (0) 0 Bonus (0) 0 TOTAL SCORE: 654 Bonus ------- None Cogmind --------- Core Integrity 0/250 Matter 215/300 Energy 100/100 System Corruption 1% Temperature Cool (0) Movement Core (50) Location -10/Mines Parts ------- > --- POWER (1) -------- (None) > --- PROPULSION (2) --- (None) > --- UTILITY (2) ------ (None) > --- WEAPON (2) ------- (None) > --- INVENTORY (5) ---- Compact Matter Pod (150) Compact Matter Pod (150) Improved Light Armor Plating Datajack Peak State ------------ > --- POWER ------------ Light Ion Engine > --- PROPULSION ------- Backup Propulsion I Backup Propulsion I > --- UTILITY ---------- Backup Plating I Backup Plating I > --- WEAPON ----------- Backup Laser I Backup Laser I > --- INVENTORY -------- (None) [Rating: 7] Favorites ----------- Power Light Ion Engine Engine Light Ion Engine Propulsion Backup Propulsion I Hover Unit Backup Propulsion I Flight Unit Flight Unit Utility Backup Plating I Protection Backup Plating I Weapon Backup Laser I Energy Gun Backup Laser I Launcher Rocket Launcher Build | -11 -10 -10 ------- Run | Yrd Mat Min Slots Evolved . | . . . Power . | . . . Propulsion . | . . . Utility . | . . . Weapon . | . . . Parts Attached 6 | 1 . 5 Power 2 | 1 . 1 Engine 2 | 1 . 1 Core . | . . . Reactor . | . . . Propulsion 1 | . . 1 Treads . | . . . Leg . | . . . Wheel . | . . . Hover . | . . . Flight 1 | . . 1 Utility 1 | . . 1 Device . | . . . Storage . | . . . Processor . | . . . Hackware . | . . . Protection 1 | . . 1 Artifact . | . . . Weapon 2 | . . 2 Energy Gun 1 | . . 1 Energy Cannon . | . . . Ballistic Gun . | . . . Ballistic Cannon . | . . . Launcher 1 | . . 1 Special Weapon . | . . . Impact Weapon . | . . . Slashing Weapon . | . . . Piercing Weapon . | . . . Special Melee Weapon . | . . . Unidentified Prototypes . | . . . Parts Lost 10 | . . 10 Power 2 | . . 2 Propulsion 3 | . . 3 Utility 2 | . . 2 Weapon 3 | . . 3 Highest Loss Streak 6 | . . 6 To Critical Strikes . | . . . Average Backups 1 | . . 2 Power . | . . . Propulsion . | . . . Utility . | . . 1 Weapon . | . . . Tool/Special . | . . . Unused Backups 3 | . . 3 Power . | . . . Propulsion . | . . . Utility 2 | . . 2 Weapon . | . . . Tool/Special 1 | . . 1 Average Slot Usage (%) 59 | . 82 40 Engine 7 | . 14 2 Hover 14 | . 22 7 Protection 16 | . 22 11 Energy Gun 17 | . 22 14 Launcher 1 | . . 3 Peak Build Rating 7 | 1 7 7 Average Rating 4 | . 6 4 On Entrance 2 | . 1 7 Avg Prop Armor Cover (%) . | . . . Naked Turns . | . . . Heaviest Build 7 | 3 7 5 Greatest Support 12 | 3 12 12 Greatest Overweight (x) 1 | . . 1 Average Overweight (x) . | . . . Largest Inventory Capacity 5 | 5 5 5 Average Capacity 5 | 5 5 5 Most Carried 5 | . 1 5 Average Carried 1 | . . 2 Final Capacity 5 | 5 5 5 Final Carried 4 | . 1 4 Class Distribution -------------------- 100% | Mutant Dominant Class ---------------- Mutant | -10/Materials Mutant | -10/Mines Resources | -11 -10 -10 ----------- Run | Yrd Mat Min Matter Collected 220 | 210 . 10 Remotely . | . . . Salvage Created 110 | . . 110 Parts 12 | . . 12 Haulers Intercepted . | . . . Recyclers Shooed . | . . . Parts Field Recycled . | . . . Retrieved Matter . | . . . Parts Self-Destructed . | . . . Prevented . | . . . Parts Restored . | . . . Kills | -11 -10 -10 ------- Run | Yrd Mat Min Combat Hostiles Destroyed 10 | . . 10 Guns 3 | . . 3 AOE 6 | . . 6 Classes Destroyed 3 | . . 3 Swarmer 7 | . . 7 Grunt 2 | . . 2 Demolisher 1 | . . 1 Best Kill Streak 6 | . . 6 Combat Bots Only 6 | . . 6 Max Kills in Single Turn 2 | . . 2 Gunslinging . | . . . Exploded 2 | . . 2 Melee . | . . . Uniques/NPCs Destroyed . | . . . Combat | -11 -10 -10 -------- Run | Yrd Mat Min Hostile Shots Fired 40 | . . 40 Missed 12 | . . 12 Hits 28 | . . 28 Projectile 28 | . . 28 AOE 8 | . . 8 Damage Taken 713 | . . 713 Core 250 | . . 250 Absorbed by Shields . | . . . Core Remaining (%) 100 | 100 . . Volleys Fired 28 | . 2 26 Largest 2 | . 2 2 Hottest 63 | . 60 63 Shots Fired 48 | . 4 44 Gun 43 | . 4 39 Cannon . | . . . Launcher 5 | . . 5 Special . | . . . Kinetic . | . . . Thermal 43 | . 4 39 Explosive 5 | . . 5 Electromagnetic . | . . . Robot Hit Streak 15 | . 1 15 Robot Miss Streak 3 | . 3 3 Penetration Max . | . . . Secondary Targets 1 | . . 1 Max Gunslinging Chain 1 | . . 1 Shots Hit Robots 30 | . 1 29 Core Hits 14 | . . 14 Critical Kills . | . . . Critical Parts Destroyed . | . . . Critical Strikes . | . . . Melee Attacks . | . . . Impact . | . . . Slashing . | . . . Piercing . | . . . Sneak Attacks . | . . . Combat Hostiles . | . . . Follow-up Attacks . | . . . Damage Inflicted 741 | . 19 722 Guns 250 | . 19 231 Cannons . | . . . Explosions 491 | . . 491 Melee . | . . . Ramming . | . . . Kinetic . | . . . Thermal 250 | . 19 231 Explosive 491 | . . 491 Electromagnetic . | . . . Impact . | . . . Slashing . | . . . Piercing . | . . . Highest Corruption 1 | . 1 1 Average Corruption 1 | . 1 1 Corruption Purged . | . . . Corruption Blocked . | . . . Effects 1 | . . 1 Message Errors 1 | . . 1 Overload Shots . | . . . Overflow Damage 88 | . . 88 Projectiles . | . . . Explosions 88 | . . 88 Melee . | . . . Knockbacks . | . . . Impact . | . . . Kinetic . | . . . Secondary . | . . . Self-Inflicted Damage 119 | . . 119 Shots 4 | . . 4 Rammed . | . . . Targets Rammed . | . . . Kicked . | . . . Crushed . | . . . Highest Temperature 82 | . 24 82 Average Temperature 49 | . 13 55 Received Heat Transfer 63 | . . 63 Siege Activations . | . . . Martial Activations . | . . . Shielding Activations . | . . . Robots Disrupted . | . . . Combat Hostiles . | . . . Robots Corrupted . | . . . Combat Hostiles . | . . . Parts Fried . | . . . Impact Corruptions . | . . . Robots Melted 1 | . . 1 Combat Hostiles 1 | . . 1 Parts Melted 2 | . . 2 Heat Transferred 1036 | . 74 962 Parts Sabotaged . | . . . Parts Stolen . | . . . Parts Stripped . | . . . Power Chain Reactions . | . . . Alert | -11 -10 -10 ------- Run | Yrd Mat Min Maximum Alert Level . | . . . Low Security (%) 100 | 100 100 100 Level 1 . | . . . Level 2 . | . . . Level 3 . | . . . Level 4 . | . . . Level 5 . | . . . High Security . | . . . Max Security . | . . . Peak Influence 165 | . . 165 Initial . | . . . Average 18 | . . 34 Influence Increases 277 | . . 277 Destroy 0b10 Robot/C 200 | . . 200 Destroy Leader 30 | . . 30 Destroy Structure 47 | . . 47 Influence Decreases 130 | . . 130 Time Decay 40 | . . 40 Lost Part 90 | . . 90 Squads Dispatched 2 | . 2 . Investigation 2 | . 2 . Extermination . | . . . Reinforcement . | . . . Assault . | . . . Garrison . | . . . Intercept . | . . . Searches Triggered . | . . . Construction Impeded . | . . . Haulers Reinforced . | . . . Active Scanning Responses . | . . . Cargo Convoy Interrupts . | . . . Stealth | -11 -10 -10 --------- Run | Yrd Mat Min Distress Signals . | . . . Communications Jammed . | . . . Distress Signals . | . . . Times Spotted 13 | . 1 12 Peak Tracking Total 3 | . 2 3 Tactical Retreats . | . . . Traps | -11 -10 -10 ------- Run | Yrd Mat Min Traps Triggered . | . . . Indirectly . | . . . Trap Hack Attempts . | . . . Triggered . | . . . Disarmed . | . . . Reprogrammed . | . . . Reused . | . . . Traps Extracted . | . . . Installed . | . . . Triggered . | . . . Machines | -11 -10 -10 ---------- Run | Yrd Mat Min Machines Disabled . | . . . Max in Single Turn . | . . . Machines Repaired . | . . . Machines Dismantled . | . . . Machines Sabotaged . | . . . Overloaded Fab Kills . | . . . Hacking | -11 -10 -10 --------- Run | Yrd Mat Min Machines Accessed 4 | . 4 . Terminals 2 | . 2 . Fabricators . | . . . Repair Stations 1 | . 1 . Recycling Units 1 | . 1 . Scanalyzers . | . . . Garrison Access . | . . . Total Hacks 9 | . 9 . Successful 2 | . 2 . Failed 7 | . 7 . Catastrophic 3 | . 3 . Database Lockouts . | . . . Manual 5 | . 5 . Terminals 5 | . 5 . Fabricators . | . . . Repair Stations 2 | . 2 . Recycling Units 2 | . 2 . Scanalyzers . | . . . Garrison Access . | . . . Terminal Hacks 1 | . 1 . Recall Investigation 1 | . 1 . Fabricator Hacks . | . . . Repair Station Hacks 1 | . 1 . Refit 1 | . 1 . Recycling Unit Hacks . | . . . Scanalyzer . | . . . Garrison Access Hacks . | . . . Unauthorized Hacks . | . . . Terminals . | . . . Fabricators . | . . . Repair Stations . | . . . Recycling Units . | . . . Scanalyzers . | . . . Garrison Access . | . . . Data Cores Recovered . | . . . Used . | . . . Hacking Detections 4 | . 4 . Full Trace Events 2 | . 2 . Feedback Events 1 | . 1 . Corruption 1 | . 1 . Feedback Blocked . | . . . Robot Schematics Acquired . | . . . Robots Built . | . . . Authchips . | . . . Time . | . . . Total Robot Build Rating . | . . . Part Schematics Acquired . | . . . Parts Built . | . . . Authchips . | . . . Time . | . . . Total Part Build Rating . | . . . Part Studies Acquired . | . . . Parts Repaired . | . . . Time . | . . . Parts Recycled . | . . . Recycled Matter . | . . . Retrieved Matter . | . . . Retrieved Components . | . . . Parts Scanalyzed . | . . . Part Schematics Acquired . | . . . Parts Damaged . | . . . Bothacking | -11 -10 -10 ------------ Run | Yrd Mat Min Used RIF Installer . | . . . Robots Hacked . | . . . Non-combat . | . . . Combat . | . . . Robot Hacks Applied . | . . . Relay Couplers Released . | . . . Fabnet Peak Effective % . | . . . Robots Rewired . | . . . Allies Hacked . | . . . Hacks Repelled . | . . . Allies | -11 -10 -10 -------- Run | Yrd Mat Min Total Allies . | . . . Largest Group . | . . . Highest-Rated Group . | . . . Highest-Rated Ally . | . . . Total Orders . | . . . Ally Attacks . | . . . Total Damage . | . . . Kills . | . . . Allies Corrupted . | . . . Allies Melted . | . . . Intel | -11 -10 -10 ------- Run | Yrd Mat Min Active Infowar (turns) . | . . . Robot Analysis Total . | . . . Derelict Logs Recovered . | . . . Drone Launches . | . . . Drone Recoveries . | . . . Exploration | -11 -10 -10 ------------- Run | Yrd Mat Min Turns Passed 324 | 16 135 173 Spaces Moved 315 | 29 154 132 Core 166 | 29 27 110 Treads . | . . . Legs . | . . . Wheels . | . . . Hover 129 | . 127 2 Flight 20 | . . 20 Fastest Speed 40 | 50 50 40 Average Speed 66 | 50 71 63 Slowest Speed 120 | 50 76 120 Overloaded Moves . | . . . Propulsion Burnouts . | . . . Robots Hopped . | . . . Potential Cave-ins . | . . . Cave-ins Triggered . | . . . Exploration Rate (%) 26 | 3 35 42 Regions Visited 2 Branch Regions 1 Pre-discovered Areas . | . . . Known Exits Taken . | . . . Unknown Exits Taken 2 | 1 1 . Scrap Searched . | . . . Spaces Dug . | . . . Terrain Destroyed 69 | . . 69 Melee . | . . . Projectile . | . . . AOE 69 | . . 69 Terrain Rammed . | . . . Walls Destroyed . | . . . Machines Disabled . | . . . Actions | -11 -10 -10 --------- Run | Yrd Mat Min Total 381 | 29 174 178 Wait 26 | . 18 8 Move 313 | 28 153 132 Hop . | . . . Pick Up 4 | . 1 3 Fast Attach 4 | 1 . 3 Attach 3 | . . 3 Detach 3 | . . 3 Swap . | . . . Drop . | . . . Fire 28 | . 2 26 Melee . | . . . Ram . | . . . Kick . | . . . Crush . | . . . Escape Stasis . | . . . Rewire . | . . . Trap . | . . . Miscellaneous . | . . . Route ------- -11/Scrapyard -10/Materials -10/Mines History --------- Turn | Location | Event 11 | -11/Scrapyard | Discovered new exit (range 12) 17 | -11/Scrapyard | Entered Materials 143 | -10/Materials | Discovered new exit (range 5) 152 | -10/Materials | Entered Mines 153 | -10/Mines | Assembled infested the area 197 | -10/Mines | Core integrity fell below 50% 225 | -10/Mines | Lost 6 parts (1p2n2u1w) 254 | -10/Mines | Received a Rocket Launcher from a helpful Derelict 302 | -10/Mines | Core integrity fell below 20% 325 | -10/Mines | Destroyed by S-10 Pest with Light Assault Rifle Last Messages --------------- 00296_ S-10 Pest destroyed. 00297_ U-05 Engineer builds a Wall. 00298_ Destroyed Flight Unit. 00298_ S-10 Pest destroyed. 00298_ Destroyed Flight Unit. 00298_ S-10 Pest destroyed. 00300_ The unstable cave ceiling collapses. 00301_ Destroyed Lgt. Ion Engine. 00301_ S-10 Pest destroyed. 00311_ Acquired Flight Unit. 00314_ Acquired Lgt. Ion Engine. 00316_ The unstable cave ceiling collapses. 00324_ Backup Laser I destroyed. 00325_ S-10 Pest destroyed. 00325_ Rocket Launcher destroyed. 00325_ Destroyed Rocket Launcher. 00325_ Lgt. Ion Engine destroyed. 00325_ Destroyed Lgt. Ion Engine. 00325_ Flight Unit destroyed. 00325_ Destroyed Flight Unit. Map ----- +----------------------------------------------------+ | | | | | | | | | | | | | | | | | | | | | | | | | | | | | | | | | | | | | | | | | ??????????????????????????????????????? | | ??????????????????????????????????????? | | ??????????????????????????????????????? | | ????????????#######???#####???????????? | | ???????????## ##### ##??????????? | | ???????????# @ ##?????????? | | ???????????# s ##### #?????????? | | ???????????## % #???# #?????????? | | ????????????#[ ##???#### ##?????????? | | ???????????? s#???????# ##??###??? ? | | ???????????## ??###### #??# ## | | ????????????## ??? ## ### #?? | | ?????????????# ??## # #??? | | ????????????? ??# [# ## #???? | | ????????????? ??# [ # ###???? | | ????????????? ##?# ##?###?????? | | ????????????? ##??## #??????????? | | ????????????? ##????# # ###??????????? | | ?????????????##??????## #??????####?? | | ?????????????????# # ##????## ### | | ????????????????????# [ #???## | | ????????????????????# #??## | | ????????????????????## [ #### | | ?????????????????????# % | | ?????????????????????# ## | | ?????????????????????### ## ## | | ???????????????????????####### ### # | | ?????????????????????????????## ##?# # | | ??????????????????????????????# #??# | | ??????????????????????????????# #??### | +----------------------------------------------------+ Best States ------------- Heat Dissipation 25 Energy Generation 10 Energy Capacity 125 Matter Stores 300 Matter Capacity 300 Sight Range 16 Terrain Scan Density 10 Armor Coverage 160 Evasion (%) 62 Item Schematics ----------------- None Robot Schematics ------------------ None Fabricated ------------ Nothing Repaired ---------- Nothing Studied --------- None Alien Tech Used ----------------- None Achievements -------------- None Challenges ------------ None Game ------ Seed AssaultIntegratedKatana Manual? 0 Play Time 00:05:29 Cumulative 2.8 hours Start 2026.08.28 @ 03:54:27 End 2026.08.28 @ 03:58:07 Sessions 1 Manual Loads 0 Difficulty Rogue Special Mode None Game No. 12 Rogue 12 Adventurer 0 Explorer 0 Win Type - Total 0 Types 0/0/0/0/0/0/0/0/0/0 Lore% 0 Gallery% 9 Achievement% 41 Wizard Run 0 Options --------- Layout 2 ASCII 0 Keyboard 0 Movement Arrows Keybinds 0 Fullscreen 1 Font 16/SmallcapsGlow Map View 50x49 Zoom Use 0% Tactical HUD 1 Map Filters NONE Filters NONE Steam SD RUN: 2584d7af-6c1e-4017-ad27-068c71b5fcaf